bitfinex/quotes_SOLUSD_20240905
["timestamp","ask_amount","ask_price","bid_price","bid_amount"]
[1725541637651,20.0,133.84,133.82,18.6813]
[1725541638148,1.0013992,133.83,133.79,18.6853]
[1725541638473,53.4735992,133.83,133.79,7.4743]
[1725541638757,20.0,133.82,133.8,8.96849725]
[1725541638955,8.81349219,133.87,133.8,1.49469725]
[1725541639168,20.0,133.86,133.84,7.4712]
[1725541639349,20.0,133.86,133.83,7.4719]
[1725541640353,20.0,133.86,133.83,1.49431417]
[1725541640656,20.0,133.86,133.84,7.4714]
[1725541641438,20.0,133.86,133.83,7.4719]
[1725541642562,20.0,133.86,133.84,7.4715]
[1725541643451,20.0,133.86,133.83,7.4719]
[1725541643645,1.0013992,133.85,133.82,18.681]
[1725541643843,1.0013992,133.85,133.82,26.1536]
[1725541644439,46.0013992,133.85,133.82,26.1536]
[1725541645439,46.0013992,133.85,133.82,18.681]
[1725541645831,46.0013992,133.85,133.82,26.1537]
[1725541646448,46.0013992,133.85,133.76,6.0771]
[1725541646759,7.4728,133.82,133.78,7.4749]
[1725541646963,21.0013992,133.81,133.78,7.4749]
[1725541647836,21.0013992,133.81,133.76,26.1649]
[1725541648047,46.0013992,133.8,133.73,18.6939]
[1725541648355,21.0013992,133.79,133.73,18.6939]
[1725541648538,45.0,133.78,133.73,18.6939]
[1725541648742,21.0013992,133.77,133.73,18.6939]
[1725541648940,46.0013992,133.76,133.73,18.6939]
[1725541649546,20.0,133.77,133.74,1.49546703]
[1725541649740,7.1593992,133.8,133.76,7.476]
[1725541650046,1.0013992,133.8,133.76,8.97106768]
[1725541650245,46.0013992,133.8,133.77,7.4753]
[1725541650667,19.61138957,133.85,133.79,18.6852]
[1725541650869,1.0013992,133.84,133.8,7.4734]
[1725541651947,1.0013992,133.84,133.81,7.4732]
[1725541652151,21.0013992,133.84,133.81,7.4732]
[1725541652346,21.0013992,133.84,133.8,7.4737]
[1725541652944,21.0013992,133.84,133.82,7.4726]
[1725541653145,1.0013992,133.85,133.81,18.6827]
[1725541653354,21.0013992,133.85,133.82,7.4726]
[1725541654065,21.0013992,133.85,133.83,7.4721]
[1725541654275,21.0013992,133.85,133.82,7.4725]
[1725541655650,20.0,133.86,133.83,20.1740912]
[1725541655851,21.0013992,133.87,133.83,18.6797]
[1725541656457,8.81339629,133.88,133.85,18.6772]
[1725541656770,1.0013992,133.88,133.85,26.1481]
[1725541656943,7.81089375,133.87,133.82,18.681]
[1725541657143,1.0013992,133.86,133.83,7.4717]
[1725541657665,1.0013992,133.87,133.84,7.4713]
[1725541658162,8.8125237,133.87,133.84,7.4713]
[1725541659146,8.8125237,133.87,133.83,7.472]
[1725541659345,8.8125237,133.87,133.79,37.3696]
[1725541659346,7.4712,133.85,133.8,7.4734]
[1725541659563,46.0013992,133.84,133.79,18.6851]
[1725541659771,46.0013992,133.84,133.8,1.49464688]
[1725541659956,1.0013992,133.84,133.79,18.6851]
[1725541660660,1.0013992,133.84,133.8,7.4735]
[1725541660856,21.0013992,133.84,133.8,7.4735]
[1725541661061,45.0,133.83,133.8,7.4735]
[1725541661259,1.0013992,133.82,133.8,7.4735]
[1725541661463,46.0013992,133.83,133.8,7.4735]
[1725541661664,1.0013992,133.82,133.8,7.4735]
[1725541662371,1.0013992,133.82,133.79,18.6851]
[1725541662554,1.0013992,133.82,133.76,34.809]
[1725541662555,21.0013992,133.82,133.76,34.809]
[1725541662747,28.4744992,133.82,133.76,34.809]
[1725541662946,45.0,133.81,133.76,34.809]
[1725541663280,1.0013992,133.8,133.76,18.6896]
[1725541663459,21.0013992,133.8,133.76,18.6896]
[1725541663788,46.0013992,133.79,133.73,18.6935]
[1725541663964,46.0013992,133.79,133.69,30.11555845]
[1725541663965,20.0,133.78,133.69,15.3982]
[1725541664272,1.0013992,133.77,133.69,15.3982]
[1725541664477,1.0013992,133.76,133.69,15.3982]
[1725541664696,21.0013992,133.76,133.69,15.3982]
[1725541664981,21.0013992,133.76,133.7,18.6981]
[1725541665151,45.0,133.77,133.71,1.49545136]
[1725541665345,20.0,133.76,133.74,7.477]
[1725541665546,20.0,133.78,133.74,7.477]
[1725541665746,1.0013992,133.77,133.74,7.477]
[1725541665954,20.0,133.78,133.75,1.49528298]
[1725541666159,1.0013992,133.79,133.74,18.6922]
[1725541666160,21.0013992,133.79,133.74,18.6922]
[1725541666458,21.0013992,133.79,133.75,7.4765]
[1725541666667,28.4757992,133.79,133.75,7.4765]
[1725541666981,28.4757992,133.79,133.74,26.1692]
[1725541667351,21.0013992,133.79,133.71,18.6964]
[1725541667574,7.4761,133.76,133.71,18.6964]
[1725541667782,1.0013992,133.75,133.72,7.4781]
[1725541667956,21.0013992,133.75,133.72,7.4781]
[1725541670083,20.0,133.75,133.73,7.4775]
[1725541670387,21.0013992,133.75,133.72,7.4782]
[1725541670554,1.0013992,133.75,133.72,7.4782]
[1725541670963,46.0013992,133.75,133.72,7.4782]
[1725541671382,46.0013992,133.75,133.71,26.1751]
[1725541671576,46.0013992,133.75,133.7,7.4792]
[1725541671888,20.0,133.74,133.7,7.4792]
[1725541672185,46.0013992,133.73,133.7,7.4792]
[1725541673494,46.0013992,133.73,133.69,7.4798]
[1725541673984,46.0013992,133.73,133.7,7.4794]
[1725541675280,46.0013992,133.73,133.69,7.4798]
[1725541675485,53.4791992,133.73,133.69,7.4798]
[1725541676183,27.4783,133.72,133.68,18.7004]
[1725541676366,46.0013992,133.71,133.68,18.7004]
[1725541676761,1.0013992,133.7,133.68,26.1808]
[1725541676981,1.0013992,133.7,133.68,18.7004]
[1725541677198,21.0013992,133.7,133.68,18.7004]
[1725541677571,21.0013992,133.7,133.66,0.8532025]
[1725541677572,20.0,133.7,133.66,0.8532025]
[1725541677777,1.0013992,133.72,133.68,7.4801]
[1725541677973,53.4800992,133.72,133.67,26.1831]
[1725541678179,20.0,133.71,133.67,26.1831]
[1725541678570,1.0013992,133.7,133.67,26.1831]
[1725541679581,8.82245481,133.7,133.67,18.7022]
[1725541679786,20.0,133.69,133.67,18.7022]
[1725541680292,20.0,133.69,133.67,26.1832]
[1725541680470,20.0,133.69,133.67,26.1831]
[1725541680668,20.0,133.69,133.67,18.7022]
[1725541680869,1.0013992,133.68,133.66,8.3347025]
[1725541681366,46.0013992,133.68,133.66,0.8532025]
[1725541681570,28.4824992,133.67,133.66,0.8532025]
[1725541681778,73.4824992,133.67,133.66,0.8532025]
[1725541681973,66.0013992,133.67,133.61,18.71]
[1725541682193,45.0,133.66,133.61,18.71]
[1725541682395,21.0013992,133.65,133.59,7.4854]
[1725541682595,46.0013992,133.64,133.59,7.4854]
[1725541682896,7.484,133.62,133.58,18.7143]
[1725541683099,21.0013992,133.61,133.58,18.7143]
[1725541683267,1.0013992,133.6,133.56,7.4872]
[1725541683467,8.4865992,133.6,133.56,7.4872]
[1725541683689,72.4861,133.59,133.55,26.2064]
[1725541683894,45.0,133.59,133.55,26.2064]
[1725541684088,20.0,133.58,133.55,26.2064]
[1725541685387,21.0013992,133.58,133.55,26.2064]
[1725541685584,20.0,133.58,133.56,8.98457028]
[1725541686090,20.0,133.59,133.56,8.98457028]
[1725541686296,20.0,133.6,133.56,8.98457028]
[1725541686481,20.0,133.6,133.57,7.4866]
[1725541686683,28.4859992,133.61,133.56,8.98447028]
[1725541686899,45.0,133.6,133.56,7.4871]
[1725541687086,20.0,133.59,133.56,8.98432611]
[1725541688097,20.0,133.59,133.57,7.4865]
[1725541688274,21.0013992,133.61,133.57,7.4865]
[1725541689083,20.0,133.61,133.57,7.4865]
[1725541689795,20.0,133.61,133.58,7.4858]
[1725541690011,8.4847992,133.63,133.59,7.4855]
[1725541690207,1.0013992,133.65,133.61,7.4843]
[1725541690516,1.0013992,133.69,133.65,7.4821]
[1725541690883,7.4806,133.68,133.63,26.1909]
[1725541691093,1.0013992,133.67,133.63,26.1909]
[1725541691812,7.4817,133.66,133.62,7.4837]
[1725541692107,1.0013992,133.66,133.62,7.4837]
[1725541692308,20.0,133.67,133.62,18.7089]
[1725541692514,8.4813992,133.69,133.64,7.4827]
[1725541692724,8.81459594,133.7,133.67,7.4811]
[1725541692924,7.2658992,133.74,133.68,1.49600943]
[1725541693215,1.0013992,133.73,133.65,1.49592869]
[1725541693383,1.0013992,133.73,133.69,7.4799]
[1725541693585,1.0013992,133.73,133.69,1.49585533]
[1725541693785,1.0013992,133.73,133.69,7.4798]
[1725541695014,21.0013992,133.73,133.69,8.97563263]
[1725541695511,21.0013992,133.73,133.69,7.4798]
[1725541696010,7.4784,133.72,133.68,26.1812]
[1725541696200,1.0013992,133.71,133.68,26.1812]
[1725541697088,46.0013992,133.71,133.68,26.1812]
[1725541697613,1.0013992,133.7,133.68,26.1812]
[1725541697806,21.0013992,133.7,133.66,7.4812]
[1725541698590,21.0013992,133.7,133.67,7.4811]
[1725541698793,21.0013992,133.7,133.66,7.4814]
[1725541699188,20.0,133.7,133.67,7.4808]
[1725541699693,1.0013992,133.75,133.68,1.4959649]
[1725541700023,7.4773,133.74,133.69,7.4795]
[1725541700307,27.65764775,133.76,133.69,7.4795]
[1725541700308,28.4790992,133.73,133.69,7.4795]
[1725541701311,46.0013992,133.72,133.69,7.4795]
[1725541702010,20.0,133.73,133.69,7.4795]
[1725541702222,21.0013992,133.73,133.69,7.4795]
[1725541702410,20.0,133.73,133.7,7.4792]
[1725541702589,21.0013992,133.74,133.7,7.4792]
[1725541702905,28.4786992,133.74,133.69,26.1791]
[1725541703116,7.4779,133.73,133.69,26.1791]
[1725541703316,21.0013992,133.72,133.69,26.1791]
[1725541703791,21.0013992,133.72,133.69,18.6993]
[1725541704398,53.81822906,133.71,133.67,7.481]
[1725541704603,1.0013992,133.7,133.67,7.481]
[1725541705389,1.0013992,133.7,133.67,8.97712354]
[1725541705786,1.0013992,133.7,133.66,18.7033]
[1725541705787,1.0013992,133.7,133.68,7.4803]
[1725541706610,45.0,133.71,133.68,7.4803]
[1725541706920,45.0,133.72,133.69,1.49586503]
[1725541707092,45.0,133.72,133.68,26.1813]
[1725541708195,52.81445229,133.72,133.68,26.1813]
[1725541708698,52.81445229,133.72,133.69,7.4799]
[1725541709910,7.81445229,133.72,133.7,7.4791]
[1725541710113,7.81445229,133.72,133.69,7.4798]
[1725541710297,1.0013992,133.73,133.7,7.4792]
[1725541710498,73.4790992,133.73,133.69,7.4798]
[1725541710694,7.4784,133.72,133.68,26.1813]
[1725541710899,1.0013992,133.71,133.68,18.701]
[1725541711820,1.0013992,133.71,133.68,26.1814]
[1725541712209,7.4795,133.7,133.65,18.7045]
[1725541712513,7.4795,133.7,133.66,7.4816]
[1725541712514,1.0013992,133.69,133.66,7.4816]
[1725541713917,8.4813992,133.69,133.65,26.1866]
[1725541714218,1.0013992,133.68,133.65,26.1866]
[1725541714809,28.4818992,133.68,133.62,18.709]
[1725541715011,1.0013992,133.67,133.63,7.4832]
[1725541715601,20.0,133.68,133.65,7.4822]
[1725541715809,20.0,133.68,133.66,7.4816]
[1725541716105,21.0013992,133.69,133.66,7.4816]
[1725541716493,21.0013992,133.69,133.67,18.7025]
[1725541716494,20.0,133.69,133.67,18.7025]
[1725541717024,21.0013992,133.7,133.67,18.7025]
[1725541717627,28.4807992,133.7,133.66,7.4814]
[1725541717805,7.48,133.69,133.65,7.482]
[1725541718117,73.4819992,133.68,133.64,26.1885]
[1725541718419,20.0,133.67,133.64,26.1885]
[1725541718599,1.0013992,133.67,133.64,26.1885]
[1725541718797,21.0013992,133.67,133.64,26.1885]
[1725541721218,28.4826992,133.67,133.64,18.7058]
[1725541721918,28.4826992,133.67,133.63,7.4831]
[1725541722723,7.4817,133.66,133.62,7.4835]
[1725541722916,1.0013992,133.65,133.62,7.4835]
[1725541723121,8.4839992,133.65,133.61,18.7102]
[1725541723416,8.4839992,133.65,133.53,258.9532025]
[1725541723417,66.0013992,133.64,133.58,18.7145]
[1725541723618,7.484,133.62,133.58,18.7145]
[1725541723820,21.0013992,133.61,133.58,18.7145]
[1725541724226,7.4855,133.59,133.55,7.4877]
[1725541724409,1.0013992,133.6,133.54,18.7206]
[1725541725226,1.0013992,133.62,133.54,18.7206]
[1725541725407,46.0013992,133.62,133.56,7.4871]
[1725541725603,7.4851,133.6,133.55,7.4877]
[1725541725808,28.4869992,133.59,133.54,26.2088]
[1725541726321,28.4869992,133.59,133.55,7.4876]
[1725541726823,1.0013992,133.58,133.55,7.4876]
[1725541728306,20.0,133.59,133.57,7.4866]
[1725541728638,28.4857992,133.61,133.57,8.98374649]
[1725541728805,1.0013992,133.6,133.57,8.98374649]
[1725541729003,1.0013992,133.61,133.58,8.98327311]
[1725541729340,1.0013992,133.61,133.56,18.7173]
[1725541729341,1.0013992,133.61,133.57,7.4866]
[1725541729904,8.4857992,133.61,133.57,7.4866]
[1725541730336,20.0,133.6,133.57,7.4866]
[1725541731009,1.0013992,133.61,133.57,7.4866]
[1725541731010,21.0013992,133.61,133.57,7.4866]
[1725541731427,21.0013992,133.61,133.57,8.98372888]
[1725541731622,21.0013992,133.61,133.57,8.98366432]
[1725541731828,21.0013992,133.61,133.58,1.49706432]
[1725541732026,20.0,133.61,133.58,1.49706432]
[1725541732329,20.0,133.61,133.57,7.4866]
[1725541733032,27.4845,133.61,133.57,7.4866]
[1725541734010,1.0013992,133.6,133.57,7.4866]
[1725541734618,1.0013992,133.6,133.56,26.2044]
[1725541735215,8.4864992,133.6,133.56,18.7173]
[1725541736044,52.4856,133.59,133.56,18.7173]
[1725541736348,21.0013992,133.58,133.54,7.4881]
[1725541736637,21.0013992,133.58,133.55,20.21672186]
[1725541736638,20.0,133.58,133.55,20.21672186]
[1725541737015,46.0013992,133.57,133.54,7.4882]
[1725541737222,46.0013992,133.57,133.53,0.8532025]
[1725541737429,53.4880992,133.57,133.53,8.3420025]
[1725541738022,7.4879,133.55,133.53,0.8532025]
[1725541738343,8.4887992,133.56,133.53,0.8532025]
[1725541739532,45.0,133.55,133.53,0.8532025]
[1725541740040,8.4887992,133.56,133.53,0.8532025]
[1725541740940,8.4891992,133.55,133.53,0.8532025]
[1725541741149,7.4878,133.55,133.53,0.8532025]
[1725541741355,1.0013992,133.54,133.53,0.8532025]
[1725541741544,7.4878,133.55,133.53,0.8532025]
[1725541741545,7.4883,133.55,133.53,0.8532025]
[1725541741745,1.0013992,133.54,133.53,0.8532025]
[1725541741947,73.4896992,133.54,133.53,0.8532025]
[1725541742137,72.4883,133.54,133.53,0.8532025]
[1725541744052,1.0013992,133.58,133.53,0.8532025]
[1725541744226,15.8418,133.62,133.53,0.8532025]
[1725541744429,8.4858992,133.61,133.57,18.716]
[1725541744653,7.81712617,133.62,133.61,7.4844]
[1725541744869,1.0013992,133.66,133.63,7.4832]
[1725541745152,7.81535712,133.69,133.64,8.9791332]
[1725541745351,7.81535712,133.69,133.68,7.4805]
[1725541745557,8.4791992,133.73,133.67,26.1837]
[1725541745853,7.4794,133.7,133.65,7.4821]
[1725541746054,24.8139992,133.72,133.61,75.01555845]
[1725541746347,24.8139992,133.72,133.66,18.7041]
[1725541746348,7.4789,133.71,133.66,18.7041]
[1725541746557,1.0013992,133.7,133.66,26.1857]
[1725541747059,1.0013992,133.7,133.66,18.7041]
[1725541747060,21.0013992,133.7,133.66,18.7041]
[1725541747230,21.0013992,133.7,133.62,18.7085]
[1725541747426,20.0,133.69,133.62,18.7085]
[1725541747737,7.4812,133.67,133.62,18.7085]
[1725541747946,21.0013992,133.66,133.62,18.7085]
[1725541748245,20.0,133.66,133.62,18.7085]
[1725541748550,20.0,133.66,133.63,1.4965269]
[1725541748764,20.0,133.67,133.63,8.9798269]
[1725541749453,20.0,133.67,133.64,7.4826]
[1725541749650,21.0013992,133.72,133.64,7.4826]
[1725541750226,7.4805,133.68,133.63,7.4832]
[1725541750427,20.0,133.67,133.63,7.4832]
[1725541751052,21.0013992,133.67,133.59,16.5725]
[1725541751256,1.0013992,133.67,133.62,7.4838]
[1725541751430,20.0,133.66,133.62,7.4838]
[1725541751831,20.0,133.66,133.62,8.98032586]
[1725541752284,45.0,133.68,133.64,7.4826]
[1725541752432,7.479,133.71,133.66,7.4816]
[1725541752627,1.0013992,133.7,133.67,7.4808]
[1725541752832,1.0013992,133.72,133.68,7.48]
[1725541753031,8.4784992,133.75,133.69,8.97571776]
[1725541753253,16.2971712,133.75,133.69,8.97571776]
[1725541753458,7.4773,133.74,133.69,8.97571776]
[1725541754058,7.4773,133.74,133.7,1.49566146]
[1725541754261,7.4773,133.74,133.7,8.97496146]
[1725541754561,53.4790992,133.73,133.68,7.4801]
[1725541754858,7.4784,133.72,133.68,7.4801]
[1725541755156,7.4798,133.7,133.65,7.482]
[1725541755534,1.0013992,133.69,133.65,7.482]
[1725541755733,1.0013992,133.68,133.63,18.7071]
[1725541755936,53.4819992,133.68,133.63,26.1903]
[1725541756145,21.0013992,133.67,133.63,26.1903]
[1725541756367,20.0,133.67,133.63,26.1903]
[1725541756744,20.0,133.67,133.64,7.4827]
[1725541756954,20.0,133.67,133.64,8.97903602]
[1725541757150,21.0013992,133.71,133.66,7.4816]
[1725541757351,20.0,133.7,133.63,37.4151]
[1725541757662,20.0,133.7,133.67,26.1831]
[1725541758044,8.4803992,133.71,133.67,26.1831]
[1725541758754,1.0013992,133.74,133.68,8.97640886]
[1725541758959,7.4779,133.73,133.69,7.4795]
[1725541759139,8.4786992,133.74,133.69,7.4795]
[1725541759343,1.0013992,133.74,133.7,8.97470999]
[1725541759575,1.0013992,133.74,133.7,7.479]
[1725541759784,8.4785992,133.74,133.69,26.1787]
[1725541759946,7.4772,133.74,133.69,26.1787]
[1725541760554,1.0013992,133.76,133.7,1.49566244]
[1725541760775,8.4768992,133.77,133.72,7.4782]
[1725541761069,8.81523159,133.76,133.71,18.6962]
[1725541761369,8.81523159,133.76,133.67,60.0454]
[1725541761370,1.0013992,133.8,133.73,18.6936]
[1725541761572,7.81346331,133.77,133.74,1.49505177]
[1725541761753,1.0013992,133.8,133.76,7.476]
[1725541761954,15.2850927,133.81,133.76,8.97094599]
[1725541762174,8.4753992,133.8,133.75,18.6905]
[1725541762347,7.8117927,133.81,133.76,8.97042048]
[1725541762547,7.8117927,133.81,133.8,7.4738]
[1725541762768,7.471,133.86,133.8,7.4738]
[1725541762966,7.80977173,133.83,133.81,1.49435168]
[1725541763273,8.4725992,133.85,133.8,7.4738]
[1725541763473,7.473,133.82,133.77,7.475]
[1725541763679,8.4733992,133.84,133.78,7.4747]
[1725541763847,20.0,133.83,133.77,7.4752]
[1725541764052,1.0013992,133.82,133.77,7.4752]
[1725541764462,1.0013992,133.85,133.76,18.69]
[1725541764665,66.0013992,133.85,133.74,7.477]
[1725541764863,20.0,133.84,133.74,7.477]
[1725541765171,7.4749,133.79,133.73,26.1717]
[1725541765367,46.0013992,133.83,133.73,18.6941]
[1725541765368,21.0013992,133.78,133.73,18.6941]
[1725541765573,7.4762,133.76,133.71,16.4649]
[1725541766070,28.4780992,133.75,133.7,7.4793]
[1725541766246,1.0013992,133.74,133.66,16.5053]
[1725541766447,1.0013992,133.77,133.67,1.49570726]
[1725541766663,1.0013992,133.76,133.66,16.5053]
[1725541766873,21.0013992,133.76,133.66,16.5053]
[1725541767167,45.0,133.75,133.66,16.5053]
[1725541767381,7.4778,133.73,133.68,7.4801]
[1725541767549,8.4791992,133.73,133.68,7.4801]
[1725541767952,27.4772,133.74,133.69,7.4798]
[1725541768151,27.4772,133.74,133.69,8.97550574]
[1725541768356,20.0,133.74,133.7,8.9747676]
[1725541768573,7.4765,133.76,133.7,8.9747676]
[1725541768574,20.0,133.75,133.7,7.4792]
[1725541768779,7.4772,133.74,133.71,1.49543663]
[1725541768951,20.0,133.73,133.7,7.4792]
[1725541769855,20.0,133.74,133.7,7.4792]
[1725541770176,27.4773,133.74,133.69,26.1788]
[1725541770776,27.4773,133.74,133.7,7.4793]
[1725541770983,20.0,133.74,133.7,7.4793]
[1725541773665,1.0013992,133.73,133.69,18.699]
[1725541774049,8.4795992,133.73,133.69,18.699]
[1725541774378,20.0,133.72,133.67,7.481]
[1725541774556,1.0013992,133.71,133.66,26.1851]
[1725541775063,7.4801,133.69,133.64,7.4823]
[1725541775265,7.4801,133.69,133.65,7.4821]
[1725541775981,7.4796,133.7,133.66,7.4816]
[1725541776277,20.0,133.69,133.65,7.482]
[1725541776454,27.48,133.69,133.65,7.482]
[1725541777674,27.48,133.69,133.66,1.49611102]
[1725541777850,27.48,133.69,133.65,7.482]
[1725541778477,27.48,133.69,133.66,8.97770788]
[1725541778478,20.0,133.69,133.66,8.97770788]
[1725541779151,20.0,133.69,133.66,1.49610788]
[1725541779358,20.0,133.69,133.65,26.1871]
[1725541780362,27.48,133.69,133.65,18.7051]
[1725541781965,27.48,133.69,133.65,26.1872]
[1725541784066,20.0,133.69,133.66,8.97750996]
[1725541784377,20.0,133.69,133.66,7.4814]
[1725541784767,20.0,133.69,133.65,26.1872]
[1725541785088,27.4801,133.69,133.65,26.1872]
[1725541786185,7.4806,133.68,133.64,7.4826]
[1725541786376,1.0013992,133.67,133.62,33.8804]
[1725541786566,7.4826,133.65,133.6,7.4845]
[1725541786766,7.4818,133.66,133.58,16.1004]
[1725541786972,8.4822992,133.68,133.64,7.4827]
[1725541787289,8.4822992,133.68,133.63,7.4831]
[1725541787290,27.4813,133.67,133.63,7.4831]
[1725541787464,27.4813,133.67,133.64,1.49634766]
[1725541787877,1.0013992,133.66,133.61,26.1942]
[1725541788387,7.4822,133.65,133.61,26.1942]
[1725541788561,1.0013992,133.68,133.62,1.49650142]
[1725541788957,21.0013992,133.69,133.63,18.7081]
[1725541789292,21.0013992,133.69,133.64,1.49621815]
[1725541789492,21.0013992,133.69,133.63,18.7081]
[1725541790291,7.4811,133.67,133.63,26.191]
[1725541790785,7.4816,133.66,133.63,18.7081]
[1725541791157,7.4816,133.66,133.61,7.4842]
[1725541791363,28.4835992,133.65,133.61,7.4842]
[1725541791562,27.4822,133.65,133.61,7.4842]
[1725541792986,20.0,133.65,133.62,1.49654537]
[1725541793391,20.0,133.65,133.62,20.2059439]
[1725541793605,20.0,133.66,133.63,7.4832]
[1725541793773,27.4816,133.66,133.62,26.1931]
[1725541796496,8.4816992,133.69,133.65,7.4818]
[1725541796798,20.0,133.68,133.65,8.97804061]
[1725541797404,27.4805,133.68,133.65,1.49624061]
[1725541797588,20.0,133.68,133.65,8.97824061]
[1725541797793,27.4806,133.68,133.64,26.1887]
[1725541799302,20.0,133.68,133.65,7.4821]
[1725541799991,27.4805,133.68,133.64,26.1886]
[1725541800397,8.4825992,133.67,133.63,7.4833]
[1725541800984,27.4805,133.68,133.64,7.4823]
[1725541801187,20.0,133.68,133.65,8.97809551]
[1725541801412,20.0,133.69,133.64,7.4825]
[1725541802007,74.8573,133.78,133.65,1.49615263]
[1725541802008,34.505,133.74,133.65,1.49615263]
[1725541802211,15.8111,133.74,133.67,18.7026]
[1725541802400,7.4773,133.74,133.69,7.4794]
[1725541802913,7.4773,133.74,133.7,7.4793]
[1725541803207,7.81697665,133.75,133.72,7.4782]
[1725541803409,8.4769992,133.77,133.73,8.97288356]
[1725541803909,8.4769992,133.77,133.71,18.6963]
[1725541803910,1.0013992,133.77,133.71,18.6963]
[1725541804908,21.0013992,133.77,133.71,18.6963]
[1725541805383,8.81498599,133.78,133.72,1.49549122]
[1725541805589,16.29028599,133.78,133.73,7.4773]
[1725541805888,18.6855,133.8,133.74,1.49523106]
[1725541805889,1.0013992,133.8,133.74,1.49523106]
[1725541806086,8.4756992,133.8,133.75,7.4766]
[1725541806516,8.4756992,133.8,133.76,1.49503345]
[1725541806891,7.4743,133.8,133.76,1.49503345]
[1725541807288,7.81193074,133.82,133.77,1.49491551]
[1725541807491,1.0013992,133.84,133.74,75.10937668]
[1725541807686,1.0013992,133.84,133.75,45.0]
[1725541807904,7.81036688,133.82,133.75,45.0]
[1725541808088,7.81036688,133.82,133.79,7.4743]
[1725541808295,7.4723,133.83,133.8,1.4945497]
[1725541808504,7.4723,133.83,133.79,7.4743]
[1725541808716,20.0,133.82,133.79,7.4743]
[1725541809317,20.0,133.83,133.79,7.4743]
[1725541809490,1.0013992,133.82,133.74,18.6924]
[1725541810115,7.4748,133.79,133.74,18.6924]
[1725541810428,21.0013992,133.78,133.74,26.169]
[1725541810718,20.0,133.78,133.74,26.169]
[1725541812218,27.4754,133.78,133.74,18.6924]
[1725541813223,7.4768,133.75,133.71,18.6963]
[1725541813528,7.4767,133.75,133.71,18.6963]
[1725541814117,7.4761,133.76,133.72,1.49544568]
[1725541814418,20.0,133.75,133.73,7.4776]
[1725541814835,20.0,133.77,133.73,7.4776]
[1725541815016,20.0,133.77,133.74,7.4771]
[1725541815204,8.4758992,133.79,133.75,8.97159165]
[1725541815407,7.4739,133.8,133.75,7.4765]
[1725541816099,8.4758992,133.79,133.74,7.4768]
[1725541816633,1.0013992,133.79,133.73,26.1713]
[1725541816924,7.4766,133.75,133.71,7.4787]
[1725541817416,7.475,133.78,133.72,20.19071929]
[1725541817623,20.0,133.77,133.72,18.6953]
[1725541817928,20.0,133.77,133.73,1.49514046]
[1725541818125,8.4758992,133.79,133.75,7.4765]
[1725541818306,20.0,133.78,133.75,7.4765]
[1725541818503,20.0,133.78,133.75,8.97151479]
[1725541818705,20.0,133.78,133.74,26.1696]
[1725541818924,1.0013992,133.77,133.73,7.4775]
[1725541819214,7.4762,133.76,133.71,18.6963]
[1725541819807,8.4769992,133.77,133.72,7.4778]
[1725541820124,20.0,133.76,133.72,7.4778]
[1725541820928,20.0,133.76,133.73,7.4777]
[1725541822630,20.0,133.76,133.74,8.97231918]
[1725541822834,20.0,133.77,133.75,1.49508831]
[1725541823122,1.0013992,133.79,133.75,8.97118831]
[1725541823338,16.28702088,133.8,133.75,8.97118831]
[1725541823705,7.81162168,133.8,133.75,20.18608831]
[1725541823903,7.4734,133.81,133.76,1.49479641]
[1725541824131,15.28370088,133.82,133.77,7.475]
[1725541824305,1.0013992,133.81,133.75,18.691]
[1725541824624,1.0013992,133.81,133.73,7.4776]
[1725541824822,7.4756,133.77,133.73,7.4775]
[1725541825525,7.4756,133.77,133.72,18.6947]
[1725541825526,7.476,133.76,133.72,26.1729]
[1725541825705,7.476,133.76,133.72,18.6947]
[1725541826107,7.476,133.76,133.69,37.398]
[1725541826108,21.0013992,133.75,133.69,18.6994]